[Event "*** MasterClass Titled Tuesday Blitz"]
[Site "Chess.com"]
[Date "2017.12.12"]
[Round "2"]
[White "chessking2151"]
[Black "TST2014"]
[Result "0-1"]
[WhiteElo "2356"]
[BlackElo "2260"]
[TimeControl "180+2"]
[EndTime "13:23:05 PST"]
[Termination "TST2014 won by resignation"]

1. e4 {[%clk 0:03:01.9]} 1... c5 {[%clk 0:02:54.3]} 2. Nf3 {[%clk 0:03:02.1]}
2... Nc6 {[%clk 0:02:54.6]} 3. Bb5 {[%clk 0:03:02.7]} 3... g6 {[%clk 0:02:54.7]}
4. Bxc6 {[%clk 0:03:03.9]} 4... dxc6 {[%clk 0:02:55.3]} 5. d3 {[%clk 0:03:05.2]}
5... Bg7 {[%clk 0:02:55.8]} 6. h3 {[%clk 0:03:06.6]} 6... Nf6 {[%clk 0:02:56]}
7. Nc3 {[%clk 0:03:07.7]} 7... O-O {[%clk 0:02:56.3]} 8. O-O {[%clk 0:03:06.7]}
8... b6 {[%clk 0:02:55.2]} 9. Bf4 {[%clk 0:02:52.1]} 9... Nd7 {[%clk 0:02:54.4]}
10. e5 {[%clk 0:02:39.2]} 10... Re8 {[%clk 0:02:41.3]} 11. Re1 {[%clk
0:02:38.8]} 11... Nf8 {[%clk 0:02:39.5]} 12. Ne4 {[%clk 0:02:35.1]} 12... Ne6
{[%clk 0:02:36]} 13. Bg3 {[%clk 0:02:34.7]} 13... f5 {[%clk 0:02:33.6]} 14. Neg5
{[%clk 0:02:32.8]} 14... h6 {[%clk 0:02:27.9]} 15. Nxe6 {[%clk 0:02:32.4]} 15...
Bxe6 {[%clk 0:02:29.4]} 16. h4 {[%clk 0:02:23.2]} 16... Kh7 {[%clk 0:02:26.8]}
17. Qe2 {[%clk 0:02:17]} 17... Bd5 {[%clk 0:02:24.3]} 18. Bf4 {[%clk 0:02:16.4]}
18... Bxf3 {[%clk 0:02:23.2]} 19. Qxf3 {[%clk 0:02:16.9]} 19... e6 {[%clk
0:02:24.8]} 20. Qxc6 {[%clk 0:01:51]} 20... Qxh4 {[%clk 0:02:24.1]} 21. g3
{[%clk 0:01:47.7]} 21... Qh3 {[%clk 0:02:15.3]} 22. a4 {[%clk 0:01:38.6]} 22...
g5 {[%clk 0:02:09.7]} 23. Bd2 {[%clk 0:01:38.4]} 23... f4 {[%clk 0:02:04.4]} 24.
gxf4 {[%clk 0:01:25.9]} 24... gxf4 {[%clk 0:01:59.9]} 25. Bxf4 {[%clk 0:01:18]}
25... Rg8 {[%clk 0:01:52.2]} 26. Bg3 {[%clk 0:01:15.6]} 26... Raf8 {[%clk
0:01:53.7]} 27. Qg2 {[%clk 0:01:14]} 27... Qh5 {[%clk 0:01:51]} 28. Re4 {[%clk
0:01:08.9]} 28... Rf5 {[%clk 0:01:50.7]} 29. Rae1 {[%clk 0:00:56]} 29... Bh8
{[%clk 0:01:35.9]} 30. Qh2 {[%clk 0:00:27]} 30... Qf7 {[%clk 0:01:21.2]} 31. Rh4
{[%clk 0:00:22.6]} 31... Rg6 {[%clk 0:01:18.5]} 32. Rhe4 {[%clk 0:00:12]} 32...
Bg7 {[%clk 0:01:07.6]} 33. b4 {[%clk 0:00:09.1]} 33... cxb4 {[%clk 0:01:06.1]}
34. Kh1 {[%clk 0:00:03.8]} 34... a5 {[%clk 0:01:05.6]} 35. Rh4 {[%clk
0:00:04.3]} 35... Rfg5 {[%clk 0:01:02.9]} 36. Qg2 {[%clk 0:00:04]} 36... Bxe5
{[%clk 0:00:57.1]} 37. Re3 {[%clk 0:00:04.8]} 37... Bxg3 {[%clk 0:00:57.3]} 38.
fxg3 {[%clk 0:00:06.3]} 38... Rf5 {[%clk 0:00:56.2]} 39. Re2 {[%clk 0:00:07.6]}
39... Rf3 {[%clk 0:00:55.3]} 40. Kh2 {[%clk 0:00:08.4]} 40... Rgf6 {[%clk
0:00:47.9]} 41. Rf4 {[%clk 0:00:05.1]} 41... R6xf4 {[%clk 0:00:47.9]} 42. gxf4
{[%clk 0:00:07]} 42... Qxf4+ {[%clk 0:00:48.8]} 43. Kh1 {[%clk 0:00:08.5]} 43...
Rf1+ {[%clk 0:00:48.7]} 0-1

[Event "*** MasterClass Titled Tuesday Blitz"]
[Site "Chess.com"]
[Date "2017.12.12"]
[Round "2"]
[White "calemcc"]
[Black "grzechu96"]
[Result "0-1"]
[WhiteElo "2271"]
[BlackElo "2430"]
[TimeControl "180+2"]
[EndTime "13:23:18 PST"]
[Termination "grzechu96 won by resignation"]

1. d4 {[%clk 0:03:01.9]} 1... Nf6 {[%clk 0:03:00.4]} 2. c4 {[%clk 0:03:03.3]}
2... g6 {[%clk 0:03:01.8]} 3. f3 {[%clk 0:03:04.5]} 3... d5 {[%clk 0:03:02.5]}
4. cxd5 {[%clk 0:03:06.4]} 4... Nxd5 {[%clk 0:03:04.2]} 5. e4 {[%clk 0:03:08.3]}
5... Nb6 {[%clk 0:03:05.6]} 6. Nc3 {[%clk 0:03:10]} 6... Bg7 {[%clk 0:03:07.2]}
7. Be3 {[%clk 0:03:11.6]} 7... O-O {[%clk 0:03:08.4]} 8. Qd2 {[%clk 0:03:12.9]}
8... e5 {[%clk 0:03:10]} 9. O-O-O {[%clk 0:03:14.6]} 9... exd4 {[%clk
0:02:45.8]} 10. Bxd4 {[%clk 0:02:43.7]} 10... Qxd4 {[%clk 0:02:43]} 11. Qxd4
{[%clk 0:02:45.6]} 11... Bxd4 {[%clk 0:02:44.1]} 12. Rxd4 {[%clk 0:02:45.2]}
12... Nc6 {[%clk 0:02:44.3]} 13. Rd2 {[%clk 0:02:46]} 13... Be6 {[%clk
0:02:45.3]} 14. Bb5 {[%clk 0:02:30.9]} 14... Ne5 {[%clk 0:02:43.4]} 15. Nge2
{[%clk 0:02:26.4]} 15... c6 {[%clk 0:02:43.5]} 16. Bd3 {[%clk 0:02:26.5]} 16...
Nbc4 {[%clk 0:02:35.2]} 17. Bxc4 {[%clk 0:02:26.4]} 17... Nxc4 {[%clk 0:02:36]}
18. Rd3 {[%clk 0:02:24]} 18... Rfd8 {[%clk 0:02:17.3]} 19. Rhd1 {[%clk
0:02:24.3]} 19... Rxd3 {[%clk 0:02:18.3]} 20. Rxd3 {[%clk 0:02:26.1]} 20... Kf8
{[%clk 0:02:09.3]} 21. Nf4 {[%clk 0:02:26.6]} 21... Ke7 {[%clk 0:02:04.2]} 22.
Nce2 {[%clk 0:02:23.8]} 22... Ne5 {[%clk 0:01:58.5]} 23. Rc3 {[%clk 0:02:18.1]}
23... Bc4 {[%clk 0:01:54.8]} 24. b3 {[%clk 0:02:16.8]} 24... Ba6 {[%clk
0:01:55.6]} 25. Kd2 {[%clk 0:02:11.4]} 25... Rd8+ {[%clk 0:01:55.4]} 26. Ke3
{[%clk 0:02:12.4]} 26... Rd1 {[%clk 0:01:55.8]} 27. a4 {[%clk 0:02:05.5]} 27...
f6 {[%clk 0:01:34.4]} 28. Kf2 {[%clk 0:01:52.1]} 28... Rd2 {[%clk 0:01:25.2]}
29. Ke3 {[%clk 0:01:52.5]} 29... Rb2 {[%clk 0:01:26]} 30. Nc1 {[%clk 0:01:46.3]}
30... Bf1 {[%clk 0:00:56.2]} 31. h4 {[%clk 0:01:31.2]} 31... Bxg2 {[%clk
0:00:52.2]} 32. Nxg2 {[%clk 0:01:29.9]} 32... Rxg2 {[%clk 0:00:54.1]} 33. f4
{[%clk 0:01:23.8]} 33... Rg3+ {[%clk 0:00:53.2]} 34. Kd2 {[%clk 0:01:24.8]}
34... Rxc3 {[%clk 0:00:54.4]} 35. Kxc3 {[%clk 0:01:26.3]} 35... Nf3 {[%clk
0:00:55.8]} 36. h5 {[%clk 0:01:24.4]} 36... gxh5 {[%clk 0:00:56.4]} 37. Ne2
{[%clk 0:01:25]} 37... h4 {[%clk 0:00:57]} 38. Kd3 {[%clk 0:01:24.3]} 38... h3
{[%clk 0:00:57]} 39. Ke3 {[%clk 0:01:25.3]} 39... h2 {[%clk 0:00:58]} 40. Ng3
{[%clk 0:01:26.8]} 40... Ne1 {[%clk 0:00:56.3]} 41. Kf2 {[%clk 0:01:26.4]} 41...
Nd3+ {[%clk 0:00:56.5]} 42. Kg2 {[%clk 0:01:27]} 42... Nxf4+ {[%clk 0:00:57.5]}
43. Kxh2 {[%clk 0:01:28.1]} 43... Nd3 {[%clk 0:00:58.1]} 44. Nf5+ {[%clk
0:01:28.1]} 44... Ke6 {[%clk 0:00:57.8]} 45. Kg3 {[%clk 0:01:30]} 45... Ke5
{[%clk 0:00:57.9]} 46. Kf3 {[%clk 0:01:28]} 46... Nc5 {[%clk 0:00:59.2]} 47. Nh6
{[%clk 0:01:24]} 47... Nxb3 {[%clk 0:00:59.6]} 48. Nf7+ {[%clk 0:01:25.1]} 48...
Kd4 {[%clk 0:01:00.4]} 49. Nd8 {[%clk 0:01:26.2]} 49... Nc5 {[%clk 0:01:01.3]}
50. a5 {[%clk 0:01:25.9]} 50... b6 {[%clk 0:01:01.6]} 51. axb6 {[%clk
0:01:25.9]} 51... axb6 {[%clk 0:01:02.8]} 52. Kf4 {[%clk 0:01:26.9]} 52... Nxe4
{[%clk 0:00:59.1]} 53. Nxc6+ {[%clk 0:01:26.9]} 53... Kc5 {[%clk 0:01:00.2]} 54.
Ne7 {[%clk 0:01:26]} 54... Nd6 {[%clk 0:01:00.7]} 55. Ng8 {[%clk 0:01:21.6]}
55... f5 {[%clk 0:01:01.6]} 56. Nf6 {[%clk 0:01:22.6]} 56... h6 {[%clk
0:01:01.7]} 57. Ng8 {[%clk 0:01:22.9]} 57... h5 {[%clk 0:01:02]} 58. Nf6 {[%clk
0:01:24.4]} 58... h4 {[%clk 0:01:02.7]} 59. Nd7+ {[%clk 0:01:22.8]} 59... Kc6
{[%clk 0:01:01.1]} 60. Ne5+ {[%clk 0:01:23.9]} 60... Kd5 {[%clk 0:01:02.4]} 61.
Nd3 {[%clk 0:01:22.4]} 61... b5 {[%clk 0:01:02.3]} 62. Kg5 {[%clk 0:01:19]}
62... h3 {[%clk 0:01:02.2]} 63. Nf2 {[%clk 0:01:20]} 63... h2 {[%clk 0:01:01.7]}
64. Kf4 {[%clk 0:01:21.2]} 64... b4 {[%clk 0:01:00.8]} 65. Kg3 {[%clk
0:01:22.3]} 65... Ne4+ {[%clk 0:01:02]} 0-1

[Event "*** MasterClass Titled Tuesday Blitz"]
[Site "Chess.com"]
[Date "2017.12.12"]
[Round "2"]
[White "GMKrikor"]
[Black "Kaphrep"]
[Result "0-1"]
[WhiteElo "2642"]
[BlackElo "2594"]
[TimeControl "180+2"]
[EndTime "13:23:22 PST"]
[Termination "Kaphrep won by resignation"]

1. e4 {[%clk 0:03:01.9]} 1... e5 {[%clk 0:02:54.6]} 2. Nf3 {[%clk 0:02:58]} 2...
Nc6 {[%clk 0:02:54.6]} 3. Bc4 {[%clk 0:02:57]} 3... Bc5 {[%clk 0:02:54.9]} 4.
O-O {[%clk 0:02:55]} 4... Nf6 {[%clk 0:02:55]} 5. d3 {[%clk 0:02:55.8]} 5... d6
{[%clk 0:02:54.8]} 6. a4 {[%clk 0:02:52.9]} 6... a5 {[%clk 0:02:51.6]} 7. c3
{[%clk 0:02:54]} 7... h6 {[%clk 0:02:46.7]} 8. d4 {[%clk 0:02:22.9]} 8... Bb6
{[%clk 0:02:38.5]} 9. dxe5 {[%clk 0:02:23.3]} 9... Nxe5 {[%clk 0:02:35.1]} 10.
Nxe5 {[%clk 0:02:20.1]} 10... dxe5 {[%clk 0:02:37]} 11. Qxd8+ {[%clk 0:02:19.9]}
11... Kxd8 {[%clk 0:02:38.9]} 12. Nd2 {[%clk 0:01:52.4]} 12... Ke7 {[%clk
0:02:37.8]} 13. Be2 {[%clk 0:01:30.3]} 13... Be6 {[%clk 0:02:33.8]} 14. Nc4
{[%clk 0:01:22.2]} 14... Bxc4 {[%clk 0:02:32.1]} 15. Bxc4 {[%clk 0:01:23.3]}
15... Nxe4 {[%clk 0:02:34]} 16. Bd5 {[%clk 0:01:24.7]} 16... Nd6 {[%clk
0:02:29.9]} 17. Re1 {[%clk 0:01:12.2]} 17... f6 {[%clk 0:02:27.7]} 18. b3 {[%clk
0:01:09.6]} 18... c6 {[%clk 0:02:26.8]} 19. Bf3 {[%clk 0:01:09.1]} 19... Rhd8
{[%clk 0:02:25.7]} 20. Ba3 {[%clk 0:01:07.6]} 20... Ke6 {[%clk 0:02:26.3]} 21.
Rad1 {[%clk 0:01:05.5]} 21... Nf7 {[%clk 0:02:22.9]} 22. Bg4+ {[%clk 0:00:53.5]}
22... f5 {[%clk 0:02:21.4]} 23. Be2 {[%clk 0:00:54.5]} 23... Kf6 {[%clk
0:02:13.7]} 24. Kf1 {[%clk 0:00:53.5]} 24... Ng5 {[%clk 0:02:09.2]} 25. f3
{[%clk 0:00:45.6]} 25... Ne6 {[%clk 0:02:10.2]} 26. Bc4 {[%clk 0:00:44.9]} 26...
Rxd1 {[%clk 0:02:06.5]} 27. Rxd1 {[%clk 0:00:46]} 27... Rd8 {[%clk 0:02:08.4]}
28. Rxd8 {[%clk 0:00:42.3]} 28... Bxd8 {[%clk 0:02:06]} 29. g3 {[%clk
0:00:39.7]} 29... Be7 {[%clk 0:01:48.2]} 30. Bc1 {[%clk 0:00:38.8]} 30... Nc7
{[%clk 0:01:39.6]} 31. Ke2 {[%clk 0:00:32.2]} 31... Bc5 {[%clk 0:01:31]} 32. h3
{[%clk 0:00:26.6]} 32... Ne8 {[%clk 0:01:24.9]} 33. Bg8 {[%clk 0:00:23]} 33...
Ke7 {[%clk 0:01:22.9]} 34. Bd2 {[%clk 0:00:17.9]} 34... Nf6 {[%clk 0:01:18.1]}
35. Bc4 {[%clk 0:00:18]} 35... e4 {[%clk 0:01:16.4]} 36. f4 {[%clk 0:00:14.4]}
36... Ne8 {[%clk 0:01:08.6]} 37. b4 {[%clk 0:00:15.5]} 37... Bb6 {[%clk
0:01:07.5]} 38. Bg8 {[%clk 0:00:12.8]} 38... Nc7 {[%clk 0:00:57]} 39. c4 {[%clk
0:00:13.4]} 39... Na6 {[%clk 0:00:45.2]} 40. bxa5 {[%clk 0:00:14.1]} 40... Bd4
{[%clk 0:00:38.1]} 41. Bh7 {[%clk 0:00:15.5]} 41... Kf6 {[%clk 0:00:36]} 42. g4
{[%clk 0:00:17.1]} 42... g6 {[%clk 0:00:37.3]} 43. g5+ {[%clk 0:00:14.2]} 43...
Kg7 {[%clk 0:00:36.5]} 44. gxh6+ {[%clk 0:00:11.1]} 44... Kxh7 {[%clk
0:00:36.8]} 0-1

[Event "*** MasterClass Titled Tuesday Blitz"]
[Site "Chess.com"]
[Date "2017.12.12"]
[Round "2"]
[White "AquivaRubinstein"]
[Black "dawtonlms"]
[Result "0-1"]
[WhiteElo "2257"]
[BlackElo "2257"]
[TimeControl "180+2"]
[EndTime "13:23:37 PST"]
[Termination "dawtonlms won by resignation"]

1. e4 {[%clk 0:03:01.9]} 1... c5 {[%clk 0:03:00.6]} 2. Nf3 {[%clk 0:03:02.9]}
2... d6 {[%clk 0:03:01.7]} 3. d4 {[%clk 0:03:04]} 3... cxd4 {[%clk 0:03:03.1]}
4. Nxd4 {[%clk 0:03:05.2]} 4... Nf6 {[%clk 0:03:04.7]} 5. Nc3 {[%clk 0:03:06.4]}
5... a6 {[%clk 0:03:06]} 6. Be3 {[%clk 0:03:05.9]} 6... e6 {[%clk 0:03:06.4]} 7.
f3 {[%clk 0:03:04.7]} 7... b5 {[%clk 0:03:07.1]} 8. a4 {[%clk 0:03:05.2]} 8...
b4 {[%clk 0:03:06.1]} 9. Na2 {[%clk 0:03:06.2]} 9... d5 {[%clk 0:03:02.4]} 10.
e5 {[%clk 0:03:07.2]} 10... Nfd7 {[%clk 0:03:03.2]} 11. f4 {[%clk 0:03:08.3]}
11... Bc5 {[%clk 0:03:01.1]} 12. Qd2 {[%clk 0:03:06.2]} 12... Qb6 {[%clk
0:02:59.7]} 13. Nc1 {[%clk 0:02:52.1]} 13... Nc6 {[%clk 0:02:56.8]} 14. Ncb3
{[%clk 0:02:51.8]} 14... Nxd4 {[%clk 0:02:55.8]} 15. Nxc5 {[%clk 0:02:42]} 15...
Qxc5 {[%clk 0:02:36.1]} 16. Bxd4 {[%clk 0:02:42.4]} 16... Qe7 {[%clk 0:02:35.9]}
17. Bd3 {[%clk 0:02:40.7]} 17... O-O {[%clk 0:02:33.1]} 18. O-O {[%clk
0:02:41.6]} 18... a5 {[%clk 0:02:26.5]} 19. f5 {[%clk 0:02:32.7]} 19... exf5
{[%clk 0:02:18]} 20. Rae1 {[%clk 0:02:20.1]} 20... Ba6 {[%clk 0:02:12.4]} 21.
Rxf5 {[%clk 0:02:17.3]} 21... Bxd3 {[%clk 0:02:13]} 22. Qxd3 {[%clk 0:02:18.1]}
22... Nc5 {[%clk 0:02:08.8]} 23. Qg3 {[%clk 0:02:03.9]} 23... Ne6 {[%clk
0:02:08.3]} 24. Rd1 {[%clk 0:01:59.3]} 24... Qd7 {[%clk 0:01:59.5]} 25. Qg4
{[%clk 0:01:56.6]} 25... Qxa4 {[%clk 0:01:55.4]} 26. b3 {[%clk 0:01:55.1]} 26...
Qc6 {[%clk 0:01:53.4]} 27. Rd2 {[%clk 0:01:50.8]} 27... a4 {[%clk 0:01:51.8]}
28. bxa4 {[%clk 0:01:47.6]} 28... Rxa4 {[%clk 0:01:52.4]} 29. h4 {[%clk
0:01:44.2]} 29... Ra2 {[%clk 0:01:52.6]} 30. Bf2 {[%clk 0:01:21.1]} 30... Rxc2
{[%clk 0:01:50.1]} 31. Rxc2 {[%clk 0:01:18.5]} 31... Qxc2 {[%clk 0:01:49.8]} 32.
Rf3 {[%clk 0:01:20.1]} 32... b3 {[%clk 0:01:48.8]} 33. Qb4 {[%clk 0:01:15.3]}
33... Qc1+ {[%clk 0:00:54.7]} 34. Kh2 {[%clk 0:01:14.3]} 34... b2 {[%clk
0:00:53]} 35. Rb3 {[%clk 0:01:15.1]} 35... Qc7 {[%clk 0:00:45.3]} 36. Bg3 {[%clk
0:01:08.8]} 36... Qc4 {[%clk 0:00:45.2]} 37. Qxc4 {[%clk 0:00:34.7]} 37... dxc4
{[%clk 0:00:47.1]} 38. Rxb2 {[%clk 0:00:36.3]} 38... h5 {[%clk 0:00:44.4]} 39.
Rc2 {[%clk 0:00:31.1]} 39... Rc8 {[%clk 0:00:44]} 40. Bf2 {[%clk 0:00:32]} 40...
Kh7 {[%clk 0:00:44]} 41. Kg3 {[%clk 0:00:32.3]} 41... Kg6 {[%clk 0:00:45.2]} 42.
Be1 {[%clk 0:00:26.4]} 42... Nd4 {[%clk 0:00:30.7]} 43. Rd2 {[%clk 0:00:26.8]}
43... Nf5+ {[%clk 0:00:31.4]} 44. Kf4 {[%clk 0:00:26.9]} 44... c3 {[%clk
0:00:30.9]} 45. Rc2 {[%clk 0:00:21.4]} 45... Rc4+ {[%clk 0:00:31.9]} 46. Kf3
{[%clk 0:00:12.7]} 46... Nd4+ {[%clk 0:00:32.2]} 47. Ke4 {[%clk 0:00:12.7]}
47... Nxc2+ {[%clk 0:00:34.1]} 48. Kd3 {[%clk 0:00:14.4]} 48... Nxe1+ {[%clk
0:00:33.4]} 49. Kxc4 {[%clk 0:00:15.6]} 49... c2 {[%clk 0:00:35.3]} 0-1

[Event "*** MasterClass Titled Tuesday Blitz"]
[Site "Chess.com"]
[Date "2017.12.12"]
[Round "2"]
[White "biostatistician"]
[Black "ohusbands"]
[Result "1-0"]
[WhiteElo "2338"]
[BlackElo "2359"]
[TimeControl "180+2"]
[EndTime "13:23:41 PST"]
[Termination "biostatistician won by resignation"]

1. d4 {[%clk 0:03:01.9]} 1... Nf6 {[%clk 0:02:56.2]} 2. Nf3 {[%clk 0:03:03.8]}
2... e6 {[%clk 0:02:57.5]} 3. c4 {[%clk 0:03:04.7]} 3... d5 {[%clk 0:02:58.8]}
4. Bg5 {[%clk 0:03:04.6]} 4... dxc4 {[%clk 0:02:58.1]} 5. e4 {[%clk 0:03:04.1]}
5... Bb4+ {[%clk 0:02:57.6]} 6. Nc3 {[%clk 0:03:04.5]} 6... c5 {[%clk
0:02:57.9]} 7. Bxc4 {[%clk 0:03:03.7]} 7... cxd4 {[%clk 0:02:56.3]} 8. Nxd4
{[%clk 0:03:05.6]} 8... Bxc3+ {[%clk 0:02:55.5]} 9. bxc3 {[%clk 0:03:05.9]} 9...
Qa5 {[%clk 0:02:57.1]} 10. Bxf6 {[%clk 0:03:05.1]} 10... gxf6 {[%clk 0:02:25.8]}
11. O-O {[%clk 0:03:05]} 11... Bd7 {[%clk 0:02:23.9]} 12. Qf3 {[%clk 0:02:51.1]}
12... Qe5 {[%clk 0:02:18.5]} 13. Rad1 {[%clk 0:02:48.2]} 13... Nc6 {[%clk
0:02:17.3]} 14. Nb5 {[%clk 0:02:46.1]} 14... Ke7 {[%clk 0:01:59.9]} 15. Qe3
{[%clk 0:02:17]} 15... b6 {[%clk 0:01:50.5]} 16. Be2 {[%clk 0:01:27.1]} 16...
Qc5 {[%clk 0:01:45.6]} 17. Nd4 {[%clk 0:01:24.1]} 17... Ne5 {[%clk 0:01:36.5]}
18. Rd2 {[%clk 0:01:11.4]} 18... Rhd8 {[%clk 0:01:36.2]} 19. Rfd1 {[%clk
0:01:12]} 19... Be8 {[%clk 0:01:30.3]} 20. Qh3 {[%clk 0:00:38.5]} 20... Rac8
{[%clk 0:01:16.3]} 21. Qxh7 {[%clk 0:00:37.1]} 21... Qxc3 {[%clk 0:01:14.3]} 22.
Qh6 {[%clk 0:00:26.8]} 22... Nc4 {[%clk 0:00:54.5]} 23. Bxc4 {[%clk 0:00:26.6]}
23... Qxc4 {[%clk 0:00:56.4]} 24. h4 {[%clk 0:00:27.2]} 24... Qc5 {[%clk
0:00:46.6]} 25. h5 {[%clk 0:00:26.8]} 25... Qg5 {[%clk 0:00:44.7]} 26. Qxg5
{[%clk 0:00:26.6]} 26... fxg5 {[%clk 0:00:46.6]} 27. g4 {[%clk 0:00:28]} 27...
Kf6 {[%clk 0:00:39.8]} 28. f3 {[%clk 0:00:25.7]} 28... Ba4 {[%clk 0:00:39.7]}
29. Nb3 {[%clk 0:00:25.7]} 29... Rxd2 {[%clk 0:00:36.6]} 30. Rxd2 {[%clk
0:00:27.6]} 30... Bxb3 {[%clk 0:00:37.8]} 31. axb3 {[%clk 0:00:28.9]} 31... Rc3
{[%clk 0:00:39.4]} 32. Kf2 {[%clk 0:00:30.4]} 32... Rxb3 {[%clk 0:00:40.6]} 33.
Rd8 {[%clk 0:00:28.7]} 33... b5 {[%clk 0:00:38.3]} 34. Rg8 {[%clk 0:00:27.4]}
34... Rb1 {[%clk 0:00:35.8]} 35. Kg2 {[%clk 0:00:26.7]} 35... Rb2+ {[%clk
0:00:35.1]} 36. Kg3 {[%clk 0:00:27.5]} 36... Rb1 {[%clk 0:00:36.3]} 37. Ra8
{[%clk 0:00:21.2]} 37... Ra1 {[%clk 0:00:15.8]} 38. Rg8 {[%clk 0:00:21.1]} 38...
Rh1 {[%clk 0:00:15.1]} 39. Kg2 {[%clk 0:00:21.7]} 39... Rb1 {[%clk 0:00:09.6]}
40. h6 {[%clk 0:00:22.1]} 40... Rb2+ {[%clk 0:00:11.1]} 41. Kg3 {[%clk
0:00:22.7]} 41... Rb1 {[%clk 0:00:10.7]} 42. h7 {[%clk 0:00:23.7]} 42... Rh1
{[%clk 0:00:11]} 43. h8=Q+ {[%clk 0:00:25.6]} 43... Rxh8 {[%clk 0:00:12]} 44.
Rxh8 {[%clk 0:00:27.5]} 44... Ke5 {[%clk 0:00:12]} 45. Ra8 {[%clk 0:00:28.9]}
45... Kd4 {[%clk 0:00:13.2]} 46. Rxa7 {[%clk 0:00:29.9]} 46... b4 {[%clk
0:00:14]} 47. Rxf7 {[%clk 0:00:30.7]} 47... b3 {[%clk 0:00:15.3]} 48. Rb7 {[%clk
0:00:31.3]} 48... Kc3 {[%clk 0:00:16.6]} 49. f4 {[%clk 0:00:31.8]} 49... gxf4+
{[%clk 0:00:17.7]} 50. Kxf4 {[%clk 0:00:33.7]} 1-0

[Event "*** MasterClass Titled Tuesday Blitz"]
[Site "Chess.com"]
[Date "2017.12.12"]
[Round "2"]
[White "Babbelbox"]
[Black "florianschwabeneder"]
[Result "0-1"]
[WhiteElo "2426"]
[BlackElo "2477"]
[TimeControl "180+2"]
[EndTime "13:23:43 PST"]
[Termination "florianschwabeneder won by resignation"]

1. d4 {[%clk 0:03:01.9]} 1... d5 {[%clk 0:03:00.3]} 2. c4 {[%clk 0:03:02.6]}
2... e6 {[%clk 0:03:01.6]} 3. Nc3 {[%clk 0:03:03]} 3... Bb4 {[%clk 0:03:02.2]}
4. a3 {[%clk 0:03:02.1]} 4... Bxc3+ {[%clk 0:03:02]} 5. bxc3 {[%clk 0:03:04]}
5... c6 {[%clk 0:03:03.2]} 6. cxd5 {[%clk 0:01:33.4]} 6... cxd5 {[%clk
0:03:02.7]} 7. e3 {[%clk 0:01:33.1]} 7... Nf6 {[%clk 0:03:01.6]} 8. c4 {[%clk
0:01:34.3]} 8... O-O {[%clk 0:02:56.1]} 9. Nf3 {[%clk 0:01:34.4]} 9... b6 {[%clk
0:02:55.2]} 10. cxd5 {[%clk 0:01:31]} 10... Qxd5 {[%clk 0:02:48.1]} 11. Qa4
{[%clk 0:01:26.8]} 11... Bd7 {[%clk 0:02:26.3]} 12. Qc4 {[%clk 0:01:27.1]} 12...
Rc8 {[%clk 0:02:10.2]} 13. Qxd5 {[%clk 0:01:26.9]} 13... Nxd5 {[%clk 0:02:11.1]}
14. Bd3 {[%clk 0:01:22.8]} 14... Nc6 {[%clk 0:02:09.6]} 15. O-O {[%clk 0:01:23]}
15... Na5 {[%clk 0:02:10.5]} 16. Bb2 {[%clk 0:01:13]} 16... Nc4 {[%clk 0:01:59]}
17. Bc1 {[%clk 0:01:12.9]} 17... f6 {[%clk 0:01:52.7]} 18. e4 {[%clk 0:01:09.4]}
18... Nc3 {[%clk 0:01:41.3]} 19. Bf4 {[%clk 0:01:07.3]} 19... Nb2 {[%clk
0:01:28.7]} 20. Ba6 {[%clk 0:01:06.7]} 20... Bb5 {[%clk 0:01:16.1]} 21. Bxc8
{[%clk 0:00:58.9]} 21... Rxc8 {[%clk 0:01:16.1]} 22. Rfe1 {[%clk 0:00:48.8]}
22... Nd3 {[%clk 0:01:02.4]} 23. Be3 {[%clk 0:00:44.9]} 23... Nxe1 {[%clk
0:01:01.6]} 24. Rxe1 {[%clk 0:00:46.8]} 24... Nxe4 {[%clk 0:01:02.2]} 25. Bf4
{[%clk 0:00:45]} 25... Nc3 {[%clk 0:01:00.2]} 26. Bd6 {[%clk 0:00:42.5]} 26...
Kf7 {[%clk 0:00:58]} 27. g4 {[%clk 0:00:43.6]} 27... Rc6 {[%clk 0:00:56]} 28.
Bb8 {[%clk 0:00:40]} 28... a5 {[%clk 0:00:53.7]} 29. g5 {[%clk 0:00:40.5]} 29...
Rc8 {[%clk 0:00:46]} 30. Ba7 {[%clk 0:00:32]} 30... Nd5 {[%clk 0:00:38.4]} 31.
Rb1 {[%clk 0:00:32.5]} 31... Bd3 {[%clk 0:00:36]} 32. Rb3 {[%clk 0:00:28.8]}
32... Bc4 {[%clk 0:00:35.3]} 33. Rb2 {[%clk 0:00:28.6]} 33... Ra8 {[%clk
0:00:32.4]} 34. Nd2 {[%clk 0:00:29.8]} 34... Ba6 {[%clk 0:00:26.2]} 35. Rxb6
{[%clk 0:00:16.2]} 35... Rxa7 {[%clk 0:00:20.4]} 36. Rc6 {[%clk 0:00:17.4]}
36... Bb5 {[%clk 0:00:19.4]} 37. Rc5 {[%clk 0:00:18.6]} 37... Bd7 {[%clk
0:00:20.1]} 38. Ne4 {[%clk 0:00:19.5]} 38... Ke7 {[%clk 0:00:21]} 39. gxf6+
{[%clk 0:00:19.5]} 39... gxf6 {[%clk 0:00:21.8]} 40. Kg2 {[%clk 0:00:19.7]}
40... a4 {[%clk 0:00:23]} 41. Kg3 {[%clk 0:00:20.7]} 41... f5 {[%clk 0:00:20.8]}
42. Ng5 {[%clk 0:00:21.3]} 42... h6 {[%clk 0:00:21.3]} 43. Nf3 {[%clk
0:00:22.4]} 43... Rc7 {[%clk 0:00:22.3]} 44. Ra5 {[%clk 0:00:23.4]} 44... Rc3
{[%clk 0:00:23.2]} 45. Kg2 {[%clk 0:00:21.7]} 45... Nf4+ {[%clk 0:00:22.9]} 46.
Kg3 {[%clk 0:00:23.1]} 46... Ne2+ {[%clk 0:00:23.9]} 47. Kg2 {[%clk 0:00:24.2]}
47... Bc6 {[%clk 0:00:25.1]} 48. d5 {[%clk 0:00:22.9]} 48... Bxd5 {[%clk
0:00:25.9]} 49. Ra7+ {[%clk 0:00:23.7]} 0-1